fUST/lending_fUST_20250628
["ID","MTS","AMOUNT","RATE_DAILY","PERIOD"]
[368154918,1751040331117,-1200.0,0.00017979,2]
[368154919,1751040331140,-132.80760448,0.00017979,2]
[368154920,1751040342074,-167.19239552,0.00017979,2]
[368154921,1751040342095,-1544.37378516,0.0001798,2]
[368154924,1751040441120,-402.72968754,0.0001798,2]
[368154928,1751040562108,-7859.43716862,0.0001798,2]
[368154982,1751040632928,-193.45935868,0.0001798,2]
[368154985,1751040632939,-637.274698,0.00018134,2]
[368154986,1751040632948,-300.0,0.00018333,2]
[368154988,1751040632957,-603.0,0.00018333,2]
[368154991,1751040632967,-500.0,0.00018333,2]
[368154994,1751040632976,-500.0,0.00018333,2]
[368154996,1751040632986,-287.1153282,0.00018333,2]
[368154998,1751040632996,-230.84619349,0.00018333,2]
[368155000,1751040633005,-500.0,0.00018333,2]
[368155002,1751040633015,-500.0,0.00018333,2]
[368155004,1751040633024,-500.0,0.00018333,2]
[368155006,1751040633033,-572.95598846,0.00018333,2]
[368155008,1751040633042,-500.0,0.00018333,2]
[368155010,1751040633051,-500.0,0.00018333,2]
[368155012,1751040633061,-500.0,0.00018333,2]
[368155014,1751040633070,-500.0,0.00018333,2]
[368155016,1751040633081,-500.0,0.00018333,2]
[368155018,1751040633090,-500.0,0.00018333,2]
[368155020,1751040633100,-500.0,0.00018333,2]
[368155022,1751040633110,-550.84669486,0.00018333,2]
[368155024,1751040633120,-500.0,0.00018333,2]
[368155026,1751040633130,-500.0,0.00018333,2]
[368155028,1751040633139,-500.0,0.00018333,2]
[368155030,1751040633149,-500.0,0.00018333,2]
[368155032,1751040633159,-500.0,0.00018333,2]
[368155034,1751040633168,-500.0,0.00018333,2]
[368155036,1751040633178,-500.0,0.00018333,2]
[368155038,1751040633188,-500.0,0.00018333,2]
[368155040,1751040633197,-650.33198134,0.00018333,2]
[368155042,1751040633207,-500.0,0.00018333,2]
[368155044,1751040633217,-500.0,0.00018333,2]
[368155046,1751040633226,-500.0,0.00018333,2]
[368155048,1751040633236,-500.0,0.00018333,2]
[368155050,1751040633246,-500.0,0.00018333,2]
[368155052,1751040633256,-500.0,0.00018333,2]
[368155054,1751040633266,-500.0,0.00018333,2]
[368155056,1751040633277,-500.0,0.00018333,2]
[368155058,1751040633287,-206.85334128,0.00018333,2]
[368155060,1751040633296,-6498.67322935,0.00018334,2]
[368155062,1751040633308,-3269.07473842,0.00018334,2]
[368155065,1751040633320,-811.31248736,0.00018334,2]
[368155067,1751040633333,-16219.54314784,0.00018334,2]
[368155239,1751040639688,-515.0,0.00018334,2]
[368155240,1751040639700,-9087.97915617,0.00018334,2]
[368155241,1751040639712,-1509.04651827,0.00018334,2]
[368155242,1751040639867,-4317.74091193,0.00018334,2]
[368155243,1751040639877,-24900.0,0.00018335,2]
[368155245,1751040639887,-313.23447647,0.00018409,2]
[368155246,1751040639898,-207.66009258,0.00018509,2]
[368155247,1751040639910,-942.70257838,0.000189,2]
[368155248,1751040639921,-221.46348234,0.00019077,3]
[368155249,1751040639930,-219.32,0.00019168,3]
[368155250,1751040639939,-266.33,0.00019168,3]
[368155251,1751040639949,-799.01,0.00019168,3]
[368155252,1751040639958,-349.36,0.00019168,3]
[368155253,1751040639971,-460.0,0.00019178,2]
[368155254,1751040639981,-189.8491,0.00019178,2]
[368155255,1751040639990,-460.0,0.00019178,2]
[368155256,1751040639999,-460.0,0.00019178,2]
[368155257,1751040640009,-460.0,0.00019178,2]
[368155258,1751040640019,-460.0,0.00019178,2]
[368155259,1751040640029,-460.0,0.00019178,2]
[368155260,1751040640039,-460.0,0.00019178,2]
[368155261,1751040640048,-460.0,0.00019178,2]
[368155262,1751040640058,-460.0,0.00019178,2]
[368155263,1751040640068,-460.0,0.00019178,2]
[368155264,1751040640082,-460.0,0.00019178,2]
[368155265,1751040640092,-500.0,0.00019178,2]
[368155266,1751040640102,-460.0,0.00019178,2]
[368155267,1751040640111,-460.0,0.00019178,2]
[368155268,1751040640120,-382.67251376,0.00019178,2]
[368155269,1751040640131,-445.34390082,0.00019178,2]
[368155270,1751040640140,-460.0,0.00019178,2]
[368155271,1751040640150,-460.0,0.00019178,2]
[368155272,1751040640160,-460.0,0.00019178,2]
[368155273,1751040640170,-455.0,0.00019178,2]
[368155274,1751040640179,-460.0,0.00019178,2]
[368155275,1751040640189,-460.0,0.00019178,2]
[368155276,1751040640198,-460.0,0.00019178,2]
[368155277,1751040640209,-561.73,0.00019178,2]
[368155278,1751040640218,-460.0,0.00019178,2]
[368155279,1751040640229,-460.0,0.00019178,2]
[368155280,1751040640239,-461.06569543,0.00019178,2]
[368155281,1751040640248,-460.0,0.00019178,2]
[368155282,1751040640259,-460.0,0.00019178,2]
[368155283,1751040640269,-460.0,0.00019178,2]
[368155284,1751040640281,-460.0,0.00019178,2]
[368155285,1751040640291,-460.0,0.00019178,2]
[368155286,1751040640301,-460.0,0.00019178,2]
[368155287,1751040640311,-460.0,0.00019178,2]
[368155288,1751040640321,-460.0,0.00019178,2]
[368155289,1751040640332,-263.47910111,0.00019178,2]
[368155290,1751040640341,-410.0,0.00019178,2]
[368155291,1751040640351,-460.0,0.00019178,2]
[368155292,1751040640361,-460.0,0.00019178,2]
[368155293,1751040640371,-568.85696635,0.00019178,2]
[368155294,1751040640380,-460.0,0.00019178,2]
[368155295,1751040640390,-460.0,0.00019178,2]
[368155296,1751040640400,-460.0,0.00019178,2]
[368155297,1751040640409,-460.0,0.00019178,2]
[368155298,1751040640419,-460.0,0.00019178,2]
[368155299,1751040640434,-460.0,0.00019178,2]
[368155300,1751040640443,-460.0,0.00019178,2]
[368155301,1751040640453,-438.85773377,0.00019178,2]
[368155302,1751040640463,-420.0,0.00019178,2]
[368155303,1751040640472,-460.0,0.00019178,2]
[368155304,1751040640482,-566.47266822,0.00019178,2]
[368155305,1751040640492,-346.16050491,0.00019178,2]
[368155306,1751040640501,-436.34797716,0.00019178,2]
[368155307,1751040640515,-460.0,0.00019178,2]
[368155308,1751040640525,-460.0,0.00019178,2]
[368155309,1751040640535,-460.0,0.00019178,2]
[368155310,1751040640549,-460.0,0.00019178,2]
[368155311,1751040640559,-460.0,0.00019178,2]
[368155312,1751040640568,-1026.74,0.00019178,2]
[368155313,1751040640578,-460.0,0.00019178,2]
[368155314,1751040640588,-2689.99,0.00019178,2]
[368155315,1751040640597,-460.0,0.00019178,2]
[368155316,1751040640607,-1000.0,0.00019178,2]
[368155317,1751040640616,-460.0,0.00019178,2]
[368155318,1751040640626,-460.0,0.00019178,2]
[368155319,1751040640635,-460.0,0.00019178,2]
[368155320,1751040640645,-460.0,0.00019178,2]
[368155322,1751040640654,-460.0,0.00019178,2]
[368155324,1751040640664,-460.0,0.00019178,2]
[368155326,1751040640673,-430.0,0.00019178,2]
[368155328,1751040640683,-1409.78,0.00019178,2]
[368155330,1751040640692,-460.0,0.00019178,2]
[368155332,1751040640702,-460.0,0.00019178,2]
[368155334,1751040640711,-460.0,0.00019178,2]
[368155336,1751040640720,-419.05928685,0.00019178,2]
[368155338,1751040640729,-460.0,0.00019178,2]
[368155340,1751040640739,-460.0,0.00019178,2]
[368155342,1751040640748,-460.0,0.00019178,2]
[368155344,1751040640758,-500.0,0.00019178,2]
[368155346,1751040640767,-500.0,0.00019178,2]
[368155348,1751040640776,-500.0,0.00019178,2]
[368155350,1751040640786,-450.45,0.00019178,2]
[368155352,1751040640796,-460.0,0.00019178,2]
[368155354,1751040640805,-460.0,0.00019178,2]
[368155356,1751040640814,-460.0,0.00019178,2]
[368155358,1751040640823,-460.0,0.00019178,2]
[368155360,1751040640836,-460.0,0.00019178,2]
[368155362,1751040640845,-460.0,0.00019178,2]
[368155364,1751040640855,-477.44,0.00019178,2]
[368155365,1751040640864,-460.0,0.00019178,2]
[368155368,1751040640874,-1090.16,0.00019178,2]
[368155369,1751040640884,-460.0,0.00019178,2]
[368155371,1751040640893,-460.0,0.00019178,2]
[368155373,1751040640904,-460.0,0.00019178,2]
[368155375,1751040640913,-2055.22,0.00019178,2]
[368155377,1751040640924,-517.02,0.00019178,2]
[368155379,1751040640933,-460.0,0.00019178,2]
[368155381,1751040640943,-460.0,0.00019178,2]
[368155383,1751040640952,-460.0,0.00019178,2]
[368155385,1751040640962,-460.0,0.00019178,2]
[368155387,1751040640971,-460.0,0.00019178,2]
[368155389,1751040640981,-460.0,0.00019178,2]
[368155391,1751040640991,-460.0,0.00019178,2]
[368155393,1751040641001,-460.0,0.00019178,2]
[368155395,1751040641010,-3511.64,0.00019178,2]
[368155397,1751040641020,-2124.91,0.00019178,2]
[368155399,1751040641030,-460.0,0.00019178,2]
[368155401,1751040641039,-460.0,0.00019178,2]
[368155403,1751040641049,-460.0,0.00019178,2]
[368155405,1751040641058,-460.54,0.00019178,2]
[368155407,1751040641069,-460.0,0.00019178,2]
[368155409,1751040641079,-747.66,0.00019178,2]
[368155411,1751040641088,-460.0,0.00019178,2]
[368155413,1751040641098,-460.0,0.00019178,2]
[368155415,1751040641107,-460.0,0.00019178,2]
[368155417,1751040641117,-1045.12,0.00019178,2]
[368155419,1751040641126,-1451.62,0.00019178,2]
[368155421,1751040641136,-460.0,0.00019178,2]
[368155423,1751040641146,-2618.4,0.00019178,2]
[368155425,1751040641155,-175.505,0.00019178,2]
[368155427,1751040641164,-205.86564522,0.00019178,3]
[368155429,1751040641174,-2847.50945806,0.00019352,2]
[368155431,1751040641184,-500.0,0.00019399,2]
[368155433,1751040641193,-471.81364035,0.00019399,2]
[368155435,1751040641203,-500.0,0.00019399,2]
[368155437,1751040641212,-500.0,0.00019399,2]
[368155439,1751040641221,-500.0,0.00019399,2]
[368155441,1751040641231,-500.0,0.00019399,2]
[368155443,1751040641242,-500.0,0.00019399,2]
[368155445,1751040641251,-296.62769677,0.00019399,2]
[368155447,1751040641261,-500.0,0.00019399,2]
[368155449,1751040641271,-500.0,0.00019399,2]
[368155451,1751040641281,-500.0,0.00019399,2]
[368155452,1751040641291,-500.0,0.00019399,2]
[368155453,1751040641300,-500.0,0.00019399,2]
[368155454,1751040641310,-500.0,0.00019399,2]
[368155455,1751040641320,-500.0,0.00019399,2]
[368155456,1751040641329,-307.63938774,0.00019399,2]
[368155457,1751040641339,-460.0,0.00019452,2]
[368155458,1751040641348,-460.0,0.00019452,2]
[368155459,1751040641358,-460.0,0.00019452,2]
[368155460,1751040641369,-460.0,0.00019452,2]
[368155461,1751040641379,-460.0,0.00019452,2]
[368155462,1751040641389,-198.69848902,0.00019452,2]
[368155463,1751040641399,-512.42945835,0.00019452,2]
[368155464,1751040641408,-460.0,0.00019452,2]
[368155465,1751040641418,-245.9579736,0.00019452,2]
[368155466,1751040641427,-348.98118321,0.00019452,2]
[368155468,1751040641436,-460.0,0.00019452,2]
[368155470,1751040641446,-460.0,0.00019452,2]
[368155472,1751040641455,-460.0,0.00019452,2]
[368155489,1751040641608,-460.0,0.00019452,2]
[368155491,1751040641618,-460.0,0.00019452,2]
[368155493,1751040641629,-460.0,0.00019452,2]
[368155495,1751040641639,-460.0,0.00019452,2]
[368155497,1751040641648,-561.73,0.00019452,2]
[368155499,1751040641658,-460.0,0.00019452,2]
[368155501,1751040641667,-460.0,0.00019452,2]
[368155503,1751040641677,-592.95177924,0.00019452,2]
[368155505,1751040641686,-460.0,0.00019452,2]
[368155507,1751040641696,-460.0,0.00019452,2]
[368155509,1751040641705,-460.0,0.00019452,2]
[368155511,1751040641714,-460.0,0.00019452,2]
[368155513,1751040641724,-460.0,0.00019452,2]
[368155515,1751040641733,-460.0,0.00019452,2]
[368155517,1751040641742,-519.61467478,0.00019452,2]
[368155519,1751040641751,-460.0,0.00019452,2]
[368155521,1751040641761,-460.0,0.00019452,2]
[368155523,1751040641770,-460.0,0.00019452,2]
[368155525,1751040641779,-556.90570204,0.00019452,2]
[368155527,1751040641788,-460.0,0.00019452,2]
[368155529,1751040641798,-330.22140276,0.00019452,2]
[368155531,1751040641808,-228.40784857,0.00019452,2]
[368155533,1751040641817,-460.0,0.00019452,2]
[368155535,1751040641830,-460.0,0.00019452,2]
[368155537,1751040641840,-460.0,0.00019452,2]
[368155539,1751040641848,-445.18,0.00019452,2]
[368155541,1751040641857,-460.0,0.00019452,2]
[368155543,1751040641866,-1026.74,0.00019452,2]
[368155545,1751040641877,-2689.99,0.00019452,2]
[368155546,1751040641886,-460.0,0.00019452,2]
[368155548,1751040641897,-1013.31562939,0.00019452,2]
[368155551,1751040641906,-460.0,0.00019452,2]
[368155553,1751040641916,-460.0,0.00019452,2]
[368155555,1751040641925,-460.0,0.00019452,2]
[368155557,1751040641934,-460.0,0.00019452,2]
[368155559,1751040641943,-460.0,0.00019452,2]
[368155561,1751040641952,-1409.78,0.00019452,2]
[368155562,1751040641961,-460.0,0.00019452,2]
[368155564,1751040641970,-460.0,0.00019452,2]
[368155567,1751040641981,-460.0,0.00019452,2]
[368155569,1751040641993,-460.0,0.00019452,2]
[368155571,1751040642002,-460.0,0.00019452,2]
[368155573,1751040642011,-460.0,0.00019452,2]
[368155575,1751040642020,-460.0,0.00019452,2]
[368155577,1751040642030,-460.0,0.00019452,2]
[368155579,1751040642039,-460.0,0.00019452,2]
[368155581,1751040642050,-1090.16,0.00019452,2]
[368155583,1751040642059,-399.37353765,0.00019452,2]
[368155585,1751040642068,-460.0,0.00019452,2]
[368155587,1751040642079,-2055.22,0.00019452,2]
[368155589,1751040642089,-517.02,0.00019452,2]
[368155591,1751040642098,-460.0,0.00019452,2]
[368155593,1751040642108,-460.0,0.00019452,2]
[368155595,1751040642118,-460.0,0.00019452,2]
[368155597,1751040642127,-460.0,0.00019452,2]
[368155599,1751040642137,-460.0,0.00019452,2]
[368155601,1751040642146,-460.0,0.00019452,2]
[368155603,1751040642156,-460.0,0.00019452,2]
[368155605,1751040642166,-3511.64,0.00019452,2]
[368155607,1751040642175,-2124.91,0.00019452,2]
[368155609,1751040642184,-460.0,0.00019452,2]
[368155611,1751040642193,-460.0,0.00019452,2]
[368155613,1751040642203,-460.0,0.00019452,2]
[368155615,1751040642212,-460.54,0.00019452,2]
[368155617,1751040642221,-460.0,0.00019452,2]
[368155619,1751040642230,-747.66,0.00019452,2]
[368155621,1751040642239,-460.0,0.00019452,2]
[368155623,1751040642249,-460.0,0.00019452,2]
[368155625,1751040642258,-1045.12,0.00019452,2]
[368155626,1751040642268,-1451.62,0.00019452,2]
[368155629,1751040642278,-2618.4,0.00019452,2]
[368155631,1751040642288,-313.23447644,0.00019468,2]
[368155633,1751040642298,-431.14,0.00019726,2]
[368155635,1751040642307,-460.0,0.00019726,2]
[368155637,1751040642316,-460.0,0.00019726,2]
[368155639,1751040642326,-460.0,0.00019726,2]
[368155641,1751040642339,-379.45605945,0.00019726,2]
[368155643,1751040642349,-460.0,0.00019726,2]
[368155644,1751040642358,-460.0,0.00019726,2]
[368155647,1751040642369,-460.0,0.00019726,2]
[368155649,1751040642379,-561.73,0.00019726,2]
[368155651,1751040642389,-228.89639811,0.00019726,2]
[368155652,1751040642398,-325.55,0.00019726,2]
[368155654,1751040642407,-460.0,0.00019726,2]
[368155656,1751040642417,-293.04,0.00019726,2]
[368155658,1751040642427,-460.0,0.00019726,2]
[368155660,1751040642436,-460.0,0.00019726,2]
[368155663,1751040642447,-1026.74,0.00019726,2]
[368155665,1751040642457,-2689.99,0.00019726,2]
[368155667,1751040642466,-460.0,0.00019726,2]
[368155668,1751040642475,-346.05,0.00019726,2]
[368155670,1751040642485,-460.0,0.00019726,2]
[368155673,1751040642494,-433.12,0.00019726,2]
[368155675,1751040642504,-1409.78,0.00019726,2]
[368155677,1751040642514,-460.0,0.00019726,2]
[368155679,1751040642524,-460.0,0.00019726,2]
[368155681,1751040642534,-460.0,0.00019726,2]
[368155683,1751040642543,-460.0,0.00019726,2]
[368155685,1751040642553,-460.0,0.00019726,2]
[368155687,1751040642562,-460.0,0.00019726,2]
[368155689,1751040642571,-460.0,0.00019726,2]
[368155691,1751040642581,-460.0,0.00019726,2]
[368155693,1751040642590,-1090.16,0.00019726,2]
[368155695,1751040642599,-460.0,0.00019726,2]
[368155696,1751040642608,-2055.22,0.00019726,2]
[368155698,1751040642618,-517.02,0.00019726,2]
[368155700,1751040642627,-440.42,0.00019726,2]
[368155702,1751040642637,-356.53244053,0.00019726,2]
[368155704,1751040642647,-460.0,0.00019726,2]
[368155706,1751040642656,-460.0,0.00019726,2]
[368155708,1751040642665,-460.0,0.00019726,2]
[368155710,1751040642675,-3511.64,0.00019726,2]
[368155712,1751040642684,-2124.91,0.00019726,2]
[368155714,1751040642694,-460.0,0.00019726,2]
[368155715,1751040642703,-460.0,0.00019726,2]
[368155717,1751040642712,-460.0,0.00019726,2]
[368155719,1751040642721,-460.54,0.00019726,2]
[368155721,1751040642730,-319.4,0.00019726,2]
[368155723,1751040642739,-747.66,0.00019726,2]
[368155725,1751040642749,-460.0,0.00019726,2]
[368155727,1751040642758,-460.0,0.00019726,2]
[368155729,1751040642768,-1045.12,0.00019726,2]
[368155731,1751040642778,-1451.62,0.00019726,2]
[368155733,1751040642788,-2618.4,0.00019726,2]
[368155736,1751040642798,-485.62165416,0.00019726,2]
[368155738,1751040642807,-550.86069672,0.00019791,2]
[368155740,1751040642816,-500.0,0.00019791,2]
[368155742,1751040642827,-500.0,0.00019794,2]
[368155743,1751040642838,-235.69525341,0.00019794,2]
[368155745,1751040642847,-500.0,0.00019794,2]
[368155747,1751040642856,-500.0,0.0001982,2]
[368155749,1751040642866,-500.0,0.0001982,2]
[368155751,1751040642875,-500.0,0.0001982,2]
[368155752,1751040642885,-288.09348078,0.00019834,2]
[368155754,1751040642894,-500.0,0.00019834,2]
[368155756,1751040642904,-428.52617537,0.00019973,2]
[368155758,1751040642914,-500.0,0.00019973,2]
[368155760,1751040642925,-500.0,0.00019973,2]
[368155762,1751040642934,-500.0,0.00019973,2]
[368155764,1751040642945,-500.0,0.00019973,2]
[368155766,1751040642954,-420.0,0.00019997,2]
[368155768,1751040642963,-495.98546658,0.00019999,2]
[368155770,1751040642972,-460.0,0.00019999,2]
[368155772,1751040642981,-460.0,0.00019999,2]
[368155774,1751040642991,-210.54856,0.00019999,2]
[368155776,1751040643000,-430.33752276,0.00019999,2]
[368155778,1751040643009,-460.0,0.00019999,2]
[368155780,1751040643018,-160.0,0.00019999,2]
[368155782,1751040643027,-418.01876866,0.00019999,2]
[368155784,1751040643036,-197.80271926,0.00019999,2]
[368155786,1751040643045,-464.20922617,0.00019999,2]
[368155788,1751040643054,-420.98027408,0.00019999,2]
[368155790,1751040643063,-416.63812256,0.00019999,2]
[368155792,1751040643073,-460.0,0.00019999,2]
[368155794,1751040643083,-460.0,0.00019999,2]
[368155796,1751040643094,-430.0,0.00019999,2]
[368155798,1751040643103,-460.0,0.00019999,2]
[368155800,1751040643112,-588.68279456,0.00019999,2]
[368155802,1751040643121,-460.0,0.00019999,2]
[368155804,1751040643131,-460.0,0.00019999,2]
[368155806,1751040643140,-460.0,0.00019999,2]
[368155808,1751040643149,-460.0,0.00019999,2]
[368155810,1751040643159,-460.0,0.00019999,2]
[368155812,1751040643168,-460.0,0.00019999,2]
[368155814,1751040643177,-272.11459268,0.00019999,2]
[368155816,1751040643186,-460.0,0.00019999,2]
[368155818,1751040643195,-460.0,0.00019999,2]
[368155820,1751040643205,-460.0,0.00019999,2]
[368155822,1751040643214,-460.0,0.00019999,2]
[368155824,1751040643223,-460.0,0.00019999,2]
[368155826,1751040643232,-461.69333702,0.00019999,2]
[368155828,1751040643241,-460.0,0.00019999,2]
[368155830,1751040643250,-460.0,0.00019999,2]
[368155832,1751040643259,-460.0,0.00019999,2]
[368155834,1751040643269,-460.0,0.00019999,2]
[368155836,1751040643279,-460.0,0.00019999,2]
[368155838,1751040643289,-460.0,0.00019999,2]
[368155840,1751040643298,-460.0,0.00019999,2]
[368155842,1751040643307,-460.0,0.00019999,2]
[368155844,1751040643316,-460.0,0.00019999,2]
[368155846,1751040643325,-460.0,0.00019999,2]
[368155848,1751040643336,-460.0,0.00019999,2]
[368155851,1751040643345,-539.7,0.00019999,2]
[368155854,1751040643355,-460.0,0.00019999,2]
[368155857,1751040643365,-460.0,0.00019999,2]
[368155860,1751040643374,-460.0,0.00019999,2]
[368155861,1751040643383,-460.0,0.00019999,2]
[368155863,1751040643393,-558.04924793,0.00019999,2]
[368155864,1751040643402,-589.45,0.00019999,2]
[368155866,1751040643412,-460.0,0.00019999,2]
[368155867,1751040643421,-460.0,0.00019999,2]
[368155868,1751040643430,-460.0,0.00019999,2]
[368155869,1751040643440,-460.0,0.00019999,2]
[368155870,1751040643449,-460.0,0.00019999,2]
[368155871,1751040643458,-460.0,0.00019999,2]
[368155872,1751040643468,-460.0,0.00019999,2]
[368155873,1751040643478,-463.60057648,0.00019999,2]
[368155874,1751040643487,-460.0,0.00019999,2]
[368155875,1751040643496,-463.18,0.00019999,2]
[368155876,1751040643505,-460.0,0.00019999,2]
[368155877,1751040643514,-460.0,0.00019999,2]
[368155879,1751040643524,-460.0,0.00019999,2]
[368155881,1751040643533,-460.0,0.00019999,2]
[368155883,1751040643542,-235.6083463,0.00019999,2]
[368155885,1751040643551,-460.0,0.00019999,2]
[368155887,1751040643560,-460.0,0.00019999,2]
[368155889,1751040643569,-263.4333544,0.00019999,2]
[368155891,1751040643578,-460.0,0.00019999,2]
[368155893,1751040643588,-460.0,0.00019999,2]
[368155895,1751040643597,-460.0,0.00019999,2]
[368155896,1751040643606,-460.0,0.00019999,2]
[368155898,1751040643614,-1314.45,0.00019999,2]
[368155900,1751040643623,-460.0,0.00019999,2]
[368155902,1751040643632,-460.0,0.00019999,2]
[368155904,1751040643641,-986.84,0.00019999,2]
[368155906,1751040643650,-460.0,0.00019999,2]
[368155908,1751040643659,-460.0,0.00019999,2]
[368155910,1751040643668,-460.0,0.00019999,2]
[368155912,1751040643677,-460.0,0.00019999,2]
[368155914,1751040643687,-1003.58,0.00019999,2]
[368155917,1751040643696,-774.49,0.00019999,2]
[368155918,1751040643704,-490.56175889,0.00019999,2]
[368155920,1751040643714,-468.04,0.00019999,2]
[368155923,1751040643723,-460.0,0.00019999,2]
[368155925,1751040643732,-460.0,0.00019999,2]
[368155927,1751040643742,-460.0,0.00019999,2]
[368155929,1751040643751,-805.81,0.00019999,2]
[368155930,1751040643760,-460.0,0.00019999,2]
[368155933,1751040643770,-460.0,0.00019999,2]
[368155934,1751040643779,-460.0,0.00019999,2]
[368155936,1751040643787,-612.2,0.00019999,2]
[368155938,1751040643797,-460.0,0.00019999,2]
[368155940,1751040643806,-460.0,0.00019999,2]
[368155942,1751040643815,-460.0,0.00019999,2]
[368155944,1751040643824,-1209.59,0.00019999,2]
[368155946,1751040643838,-460.0,0.00019999,2]
[368155948,1751040643847,-460.0,0.00019999,2]
[368155951,1751040643856,-156.17327471,0.00019999,2]
[368155952,1751040643866,-460.0,0.00019999,2]
[368155954,1751040643875,-460.0,0.00019999,2]
[368155956,1751040643883,-460.0,0.00019999,2]
[368155959,1751040643893,-460.0,0.00019999,2]
[368155961,1751040643903,-353.14510899,0.00019999,2]
[368155963,1751040643912,-460.0,0.00019999,2]
[368155966,1751040643921,-460.0,0.00019999,2]
[368155968,1751040643930,-460.0,0.00019999,2]
[368155970,1751040643939,-460.0,0.00019999,2]
[368155972,1751040643948,-460.0,0.00019999,2]
[368155974,1751040643956,-346.86969654,0.00019999,2]
[368155976,1751040643966,-460.0,0.00019999,2]
[368155978,1751040643975,-460.0,0.00019999,2]
[368155980,1751040643984,-460.0,0.00019999,2]
[368155982,1751040643993,-460.0,0.00019999,2]
[368155984,1751040644003,-460.0,0.00019999,2]
[368155986,1751040644012,-460.0,0.00019999,2]
[368155988,1751040644021,-460.0,0.00019999,2]
[368155990,1751040644031,-460.0,0.00019999,2]
[368155992,1751040644040,-1819.92,0.00019999,2]
[368155994,1751040644048,-460.0,0.00019999,2]
[368155996,1751040644058,-1037.81,0.00019999,2]
[368155998,1751040644067,-460.0,0.00019999,2]
[368156000,1751040644076,-460.0,0.00019999,2]
[368156001,1751040644085,-460.0,0.00019999,2]
[368156003,1751040644094,-460.0,0.00019999,2]
[368156005,1751040644105,-460.0,0.00019999,2]
[368156008,1751040644114,-460.0,0.00019999,2]
[368156009,1751040644124,-460.0,0.00019999,2]
[368156011,1751040644133,-799.51,0.00019999,2]
[368156013,1751040644141,-4888.04,0.00019999,2]
[368156015,1751040644151,-460.0,0.00019999,2]
[368156017,1751040644161,-460.0,0.00019999,2]
[368156019,1751040644170,-446.19659332,0.00019999,2]
[368156021,1751040644179,-462.94188006,0.00019999,2]
[368156023,1751040644188,-460.0,0.00019999,2]
[368156025,1751040644197,-460.0,0.00019999,2]
[368156027,1751040644206,-460.0,0.00019999,2]
[368156029,1751040644216,-470.68816002,0.00019999,2]
[368156031,1751040644226,-460.0,0.00019999,2]
[368156033,1751040644236,-460.0,0.00019999,2]
[368156035,1751040644245,-1013.11,0.00019999,2]
[368156037,1751040644254,-786.61,0.00019999,2]
[368156039,1751040644263,-460.0,0.00019999,2]
[368156041,1751040644273,-460.0,0.00019999,2]
[368156043,1751040644283,-460.0,0.00019999,2]
[368156045,1751040644292,-489.32333107,0.00019999,2]
[368156047,1751040644302,-460.0,0.00019999,2]
[368156049,1751040644312,-460.0,0.00019999,2]